bitfinex/quotes_SOLUSD_20230113
["timestamp","ask_amount","ask_price","bid_price","bid_amount"]
[1673637972935,115.3524,16.828,16.814,17.0]
[1673637973997,44.57,16.829,16.814,46.9691928]
[1673637974192,44.57,16.831,16.82,12.06]
[1673637974412,155.4103,16.834,16.821,17.0]
[1673637974733,110.8503,16.834,16.821,17.0]
[1673637975155,155.4103,16.834,16.821,17.0]
[1673637975363,110.8503,16.834,16.821,17.0]
[1673637975680,110.8503,16.834,16.822,20.0]
[1673637975984,110.8503,16.834,16.822,94.5591928]
[1673637976182,110.8503,16.834,16.823,17.0]
[1673637977041,110.8503,16.834,16.822,17.0]
[1673637977674,110.8503,16.834,16.821,61.59]
[1673637977988,110.8503,16.834,16.821,17.0]
[1673637980945,110.8503,16.834,16.821,46.9691928]
[1673637982935,110.8503,16.834,16.821,91.5591928]
[1673637983568,110.8503,16.834,16.821,46.9691928]
[1673637983972,110.8503,16.834,16.821,91.5591928]
[1673637985456,110.8503,16.834,16.821,46.9691928]
[1673637987223,110.8503,16.834,16.82,60.13]
[1673637987446,20.0,16.832,16.82,12.05]
[1673637987649,17.0,16.831,16.82,12.05]
[1673637987866,20.0,16.83,16.82,12.05]
[1673637988076,20.0,16.83,16.815,20.0]
[1673637988288,44.57,16.829,16.816,20.0]
[1673637988604,44.57,16.829,16.814,20.0]
[1673637988812,44.57,16.829,16.815,17.0]
[1673637989008,20.0,16.828,16.816,20.0]
[1673637990687,44.57,16.829,16.816,20.0]
[1673637990899,44.58,16.827,16.817,17.0]
[1673637991109,44.57,16.828,16.817,17.0]
[1673637991329,44.57,16.829,16.818,20.0]
[1673637991529,44.57,16.829,16.819,17.0]
[1673637993648,44.57,16.831,16.819,17.0]
[1673637993856,44.57,16.831,16.82,16.06]
[1673637994061,20.0,16.833,16.821,17.0]
[1673637994062,44.56,16.832,16.821,17.0]
[1673637994497,44.56,16.832,16.821,46.9691928]
[1673637994909,44.55,16.837,16.821,17.0]
[1673637995327,44.56,16.833,16.821,17.0]
[1673637997236,44.55,16.837,16.822,74.5591928]
[1673637997458,44.55,16.837,16.823,37.0]
[1673637997761,272.6093,16.839,16.823,66.9691928]
[1673637997957,20.0,16.838,16.824,29.9691928]
[1673637998165,64.55,16.838,16.825,17.0]
[1673637998588,64.55,16.838,16.825,46.9691928]
[1673637999417,84.55,16.838,16.825,17.0]
[1673637999630,84.55,16.838,16.824,17.0]
[1673638000379,64.55,16.838,16.824,17.0]
[1673638000919,20.0,16.837,16.824,17.0]
[1673638001837,44.55,16.836,16.824,17.0]
[1673638003031,44.55,16.836,16.82,16.15]
[1673638003216,20.0,16.834,16.821,17.0]
[1673638003636,44.56,16.833,16.821,17.0]
[1673638005758,44.56,16.833,16.82,16.15]
[1673638005969,20.0,16.832,16.82,16.15]
[1673638006902,20.0,16.832,16.821,17.0]
[1673638007432,44.57,16.831,16.821,17.0]
[1673638009214,44.56,16.833,16.821,17.0]
[1673638009956,44.56,16.833,16.821,46.9691928]
[1673638010163,44.55,16.836,16.821,46.9691928]
[1673638010694,44.55,16.837,16.821,91.5591928]
[1673638010885,64.55,16.838,16.822,29.9691928]
[1673638011096,64.55,16.838,16.824,20.0]
[1673638011644,64.55,16.838,16.825,17.0]
[1673638012580,64.55,16.838,16.824,17.0]
[1673638012797,64.55,16.838,16.825,29.9691928]
[1673638013009,64.55,16.838,16.826,17.0]
[1673638014048,20.0,16.838,16.826,17.0]
[1673638014254,64.55,16.838,16.826,17.0]
[1673638014471,64.55,16.838,16.825,17.0]
[1673638014886,64.55,16.838,16.824,17.0]
[1673638015715,84.55,16.838,16.824,17.0]
[1673638016054,20.0,16.837,16.824,17.0]
[1673638016785,20.0,16.837,16.823,17.0]
[1673638017729,44.55,16.838,16.83,16.02]
[1673638017946,44.54,16.842,16.831,17.0]
[1673638018256,44.53,16.843,16.831,17.0]
[1673638020038,44.53,16.843,16.826,44.58]
[1673638020039,20.0,16.841,16.826,44.58]
[1673638020248,20.0,16.841,16.827,20.0]
[1673638020448,44.54,16.84,16.827,20.0]
[1673638020787,20.0,16.839,16.824,44.58]
[1673638020969,20.0,16.838,16.821,44.59]
[1673638021179,20.0,16.837,16.82,16.15]
[1673638021616,44.55,16.836,16.82,16.15]
[1673638022870,44.55,16.837,16.82,16.15]
[1673638023092,44.55,16.835,16.82,16.15]
[1673638023310,44.55,16.836,16.82,16.15]
[1673638023522,44.56,16.834,16.82,16.15]
[1673638023829,20.0,16.838,16.822,20.0]
[1673638023830,44.55,16.837,16.822,20.0]
[1673638024357,44.55,16.837,16.823,17.0]
[1673638024550,44.55,16.837,16.822,17.0]
[1673638025392,44.55,16.837,16.82,80.26]
[1673638025597,17.0,16.836,16.82,16.0]
[1673638025825,44.55,16.837,16.82,16.0]
[1673638026017,20.0,16.838,16.82,45.9691928]
[1673638026018,44.55,16.835,16.82,45.9691928]
[1673638026229,44.55,16.836,16.82,45.9691928]
[1673638026438,44.55,16.837,16.821,20.0]
[1673638026661,44.55,16.837,16.821,64.59]
[1673638026864,44.55,16.837,16.822,17.0]
[1673638027402,44.55,16.837,16.822,46.9691928]
[1673638028452,44.55,16.837,16.822,17.0]
[1673638028668,37.0,16.836,16.821,17.0]
[1673638028973,37.0,16.836,16.82,80.24]
[1673638028974,37.0,16.836,16.82,16.0]
[1673638029192,44.55,16.835,16.82,16.0]
[1673638029802,37.0,16.834,16.82,16.0]
[1673638030240,64.56,16.833,16.82,16.0]
[1673638030442,17.0,16.832,16.815,83.53818447]
[1673638030640,17.0,16.832,16.816,20.0]
[1673638030851,44.57,16.831,16.816,20.0]
[1673638031065,17.0,16.83,16.816,20.0]
[1673638031699,17.0,16.83,16.817,17.0]
[1673638031908,17.0,16.831,16.818,20.0]
[1673638033608,44.57,16.83,16.818,20.0]
[1673638034438,44.57,16.83,16.819,17.0]
[1673638034872,44.56,16.832,16.819,17.0]
[1673638035067,44.56,16.832,16.82,45.9891928]
[1673638035282,44.55,16.835,16.821,17.0]
[1673638035486,44.55,16.835,16.821,46.9691928]
[1673638035696,44.55,16.835,16.822,29.9691928]
[1673638035915,44.55,16.836,16.823,17.0]
[1673638036126,44.55,16.837,16.823,17.0]
[1673638036321,44.55,16.835,16.823,17.0]
[1673638036535,44.55,16.837,16.823,17.0]
[1673638036864,44.55,16.837,16.822,17.0]
[1673638037397,44.55,16.837,16.821,17.0]
[1673638037582,44.55,16.837,16.821,61.59]
[1673638037795,44.55,16.837,16.823,20.0]
[1673638038021,44.55,16.837,16.824,17.0]
[1673638039592,44.55,16.837,16.823,17.0]
[1673638040426,44.55,16.837,16.822,17.0]
[1673638044323,17.0,16.836,16.82,45.9891928]
[1673638044517,37.0,16.836,16.82,45.9891928]
[1673638044723,44.55,16.835,16.82,45.9891928]
[1673638045689,44.55,16.835,16.821,17.0]
[1673638049563,44.55,16.837,16.821,17.0]
[1673638052401,17.0,16.836,16.82,56.56]
[1673638052609,37.0,16.836,16.82,56.56]
[1673638052841,44.55,16.835,16.82,56.56]
[1673638053053,44.55,16.835,16.82,11.97]
[1673638053485,17.0,16.834,16.82,11.97]
[1673638053700,37.0,16.834,16.82,11.97]
[1673638053884,44.56,16.833,16.82,11.97]
[1673638054427,44.56,16.833,16.821,17.0]
[1673638056216,44.56,16.833,16.82,11.97]
[1673638058296,44.56,16.833,16.821,17.0]
[1673638058825,44.55,16.836,16.821,17.0]
[1673638059045,17.0,16.835,16.821,17.0]
[1673638059454,44.56,16.834,16.821,17.0]
[1673638062206,44.56,16.834,16.822,29.9691928]
[1673638062517,20.0,16.838,16.822,29.9691928]
[1673638062518,44.55,16.837,16.824,20.0]
[1673638062730,64.55,16.838,16.824,20.0]
[1673638062948,20.0,16.838,16.825,46.9691928]
[1673638064409,20.0,16.838,16.825,17.0]
[1673638065157,44.53,16.843,16.83,12.04]
[1673638065344,44.53,16.843,16.831,17.0]
[1673638067870,44.53,16.843,16.83,12.04]
[1673638068075,37.0,16.842,16.827,29.9691928]
[1673638068302,37.0,16.842,16.828,20.0]
[1673638068516,44.54,16.841,16.828,20.0]
[1673638069880,44.54,16.841,16.829,17.0]
[1673638071665,44.54,16.841,16.83,11.97]
[1673638071857,44.53,16.843,16.831,17.0]
[1673638072065,14.4802742,16.844,16.831,17.0]
[1673638072277,44.53,16.843,16.831,17.0]
[1673638073447,14.4802742,16.844,16.831,17.0]
[1673638073758,44.53,16.843,16.831,17.0]
[1673638074162,14.4802742,16.844,16.831,17.0]
[1673638074806,44.53,16.843,16.831,17.0]
[1673638075766,44.53,16.843,16.83,11.97]
[1673638075970,17.0,16.842,16.83,11.97]
[1673638076284,44.53,16.843,16.828,20.0]
[1673638076493,44.54,16.841,16.826,20.0]
[1673638076698,44.54,16.842,16.826,20.0]
[1673638077115,44.54,16.842,16.83,12.0]
[1673638077317,44.54,16.842,16.831,17.0]
[1673638077528,44.53,16.843,16.831,17.0]
[1673638078401,20.0,16.842,16.831,17.0]
[1673638078809,44.53,16.843,16.831,17.0]
[1673638083022,14.4802742,16.844,16.831,46.9691928]
[1673638083211,14.4802742,16.844,16.831,17.0]
[1673638083554,14.4802742,16.844,16.832,20.0]
[1673638083731,14.4802742,16.844,16.833,17.0]
[1673638085011,5.8507742,16.844,16.834,5.86733]
[1673638085207,5.8507742,16.844,16.835,57.0]
[1673638085622,5.8507742,16.844,16.836,44.55]
[1673638085847,5.8507742,16.844,16.837,20.0]
[1673638086059,5.8507742,16.844,16.837,37.0]
[1673638089843,5.8507742,16.844,16.837,66.9691928]
[1673638090052,5.8507742,16.844,16.838,20.0]
[1673638090249,5.8507742,16.844,16.84,20.0]
[1673638090470,5.8507742,16.844,16.841,17.0]
[1673638097087,5.8507742,16.844,16.839,40.0]
[1673638097297,5.8507742,16.844,16.839,20.0]
[1673638097507,5.8507742,16.844,16.838,20.0]
[1673638098764,5.8507742,16.844,16.835,20.0]
[1673638099631,5.8507742,16.844,16.833,44.56]
[1673638099844,5.8507742,16.844,16.831,44.57]
[1673638101201,5.8507742,16.844,16.83,42.0791928]
[1673638101517,5.8507742,16.844,16.831,29.9691928]
[1673638102571,50.3807742,16.844,16.832,17.0]
[1673638102969,20.0,16.843,16.832,17.0]
[1673638104871,20.0,16.843,16.831,29.9691928]
[1673638105196,20.0,16.843,16.83,60.14]
[1673638105390,64.53,16.843,16.831,17.0]
[1673638106435,44.53,16.843,16.831,17.0]
[1673638106782,50.3807742,16.844,16.831,46.9691928]
[1673638106973,50.3807742,16.844,16.831,17.0]
[1673638107298,5.8507742,16.844,16.831,46.9691928]
[1673638107506,25.8507742,16.844,16.831,46.9691928]
[1673638109277,25.8507742,16.844,16.831,29.9691928]
[1673638109819,44.53,16.843,16.831,29.9691928]
[1673638110010,20.0,16.842,16.831,29.9691928]
[1673638113714,70.3807742,16.844,16.831,29.9691928]
[1673638114870,50.3807742,16.844,16.831,29.9691928]
[1673638115066,5.8507742,16.844,16.83,11.93]
[1673638115271,5.8507742,16.844,16.831,17.0]
[1673638116019,25.8507742,16.844,16.831,17.0]
[1673638116424,25.8507742,16.844,16.83,41.8991928]
[1673638116758,20.0,16.842,16.83,41.8991928]
[1673638116954,17.0,16.841,16.83,11.93]
[1673638117680,61.54,16.841,16.83,11.93]
[1673638117891,50.3807742,16.844,16.83,11.93]
[1673638118103,17.0,16.843,16.83,11.93]
[1673638118422,50.3807742,16.844,16.83,11.93]
[1673638118630,50.3807742,16.844,16.831,17.0]
[1673638119281,20.0,16.843,16.83,11.93]
[1673638119474,37.0,16.843,16.83,11.93]
[1673638120221,44.54,16.842,16.83,11.93]
[1673638120539,17.0,16.841,16.83,11.93]
[1673638120956,44.54,16.842,16.83,11.93]
[1673638121171,50.3807742,16.844,16.83,11.93]
[1673638121569,5.8507742,16.844,16.831,17.0]
[1673638121992,5.8507742,16.844,16.832,49.9691928]
[1673638122212,5.8507742,16.844,16.832,94.5291928]
[1673638122514,5.8507742,16.844,16.834,20.0]
[1673638122845,5.8507742,16.844,16.834,49.9691928]
[1673638123051,5.8507742,16.844,16.835,17.0]
[1673638123467,5.8507742,16.844,16.835,46.9691928]
[1673638123793,5.8507742,16.844,16.836,20.0]
[1673638124190,5.8507742,16.844,16.837,17.0]
[1673638124415,5.8507742,16.844,16.836,17.0]
[1673638125243,5.8507742,16.844,16.835,17.0]
[1673638125581,5.8507742,16.844,16.834,44.56]
[1673638125766,5.8507742,16.844,16.833,49.9691928]
[1673638128214,5.8507742,16.844,16.833,29.9691928]
[1673638128421,5.8507742,16.844,16.831,44.57]
[1673638128640,44.53,16.843,16.831,44.57]
[1673638129173,5.8507742,16.844,16.828,74.5391928]
[1673638129679,5.8507742,16.844,16.831,29.9691928]
[1673638129890,5.8507742,16.844,16.832,17.0]
[1673638130317,5.8507742,16.844,16.832,46.9691928]
[1673638131691,5.8507742,16.844,16.832,17.0]
[1673638132428,5.8507742,16.844,16.83,56.5]
[1673638132626,20.0,16.842,16.827,44.58]
[1673638132832,17.0,16.841,16.828,20.0]
[1673638133252,17.0,16.841,16.825,20.0]
[1673638133675,17.0,16.841,16.826,44.58]
[1673638133891,17.0,16.842,16.827,57.0]
[1673638134618,17.0,16.842,16.828,44.57]
[1673638134845,17.0,16.842,16.829,37.0]
[1673638135379,17.0,16.842,16.83,11.97]
[1673638135588,44.53,16.843,16.83,11.97]
[1673638135786,5.8507742,16.844,16.83,11.97]
[1673638136000,5.8507742,16.844,16.831,17.0]
[1673638136413,5.8507742,16.844,16.832,64.56]
[1673638136617,5.8507742,16.844,16.833,17.0]
[1673638137145,5.8507742,16.844,16.831,44.57]
[1673638137351,5.8507742,16.844,16.832,17.0]
[1673638137893,17.0,16.843,16.831,44.57]
[1673638138094,17.0,16.843,16.83,11.97]
[1673638139239,61.53,16.843,16.83,56.54]
[1673638139451,17.0,16.843,16.83,11.97]
[1673638139782,37.0,16.843,16.83,11.97]
[1673638141254,17.0,16.843,16.83,11.97]
[1673638143240,50.3807742,16.844,16.83,11.97]
[1673638143447,50.3807742,16.844,16.831,17.0]
[1673638143667,5.8507742,16.844,16.831,17.0]
[1673638146937,61.53,16.843,16.83,11.97]
[1673638147135,17.0,16.843,16.83,11.97]
[1673638148818,61.53,16.843,16.83,11.97]
[1673638152404,44.53,16.843,16.831,17.0]
[1673638155249,44.53,16.843,16.83,11.97]
[1673638156406,44.53,16.843,16.831,17.0]
[1673638156931,5.8507742,16.844,16.831,17.0]
[1673638161445,37.0,16.843,16.83,12.09]
[1673638161671,81.53,16.843,16.83,12.09]
[1673638168588,37.0,16.843,16.825,44.58]
[1673638168795,64.54,16.842,16.822,44.59]
[1673638169132,20.0,16.839,16.821,261.7487]
[1673638169340,20.0,16.837,16.821,261.7487]
[1673638169530,20.0,16.837,16.821,155.9856]
[1673638169739,44.55,16.836,16.821,155.9856]
[1673638169949,44.55,16.836,16.822,17.0]
[1673638171745,44.55,16.836,16.82,12.03]
[1673638171953,17.0,16.835,16.82,12.03]
[1673638172168,20.0,16.834,16.816,44.61]
[1673638172380,17.0,16.833,16.817,20.0]
[1673638172801,44.56,16.832,16.817,20.0]
[1673638173135,44.56,16.832,16.818,20.0]
[1673638173315,61.56,16.833,16.819,37.0]
[1673638173529,17.0,16.833,16.819,37.0]
[1673638173762,44.56,16.832,16.819,37.0]
[1673638173959,61.56,16.834,16.819,37.0]
[1673638175640,44.56,16.834,16.819,20.0]
[1673638175955,44.56,16.834,16.816,44.61]
[1673638175956,17.0,16.833,16.82,17.0]
[1673638176361,44.56,16.832,16.82,17.0]
[1673638177438,44.56,16.834,16.82,17.0]
[1673638177746,44.56,16.834,16.819,17.0]
[1673638179736,44.56,16.834,16.818,44.6]
[1673638179946,44.56,16.834,16.819,37.0]
[1673638180687,17.0,16.833,16.819,37.0]
[1673638181009,17.0,16.833,16.819,20.0]
[1673638181202,44.56,16.832,16.817,20.0]
[1673638182273,44.56,16.832,16.818,17.0]
[1673638182482,44.56,16.832,16.819,20.0]
[1673638184044,37.0,16.831,16.814,44.61]
[1673638184267,20.0,16.83,16.812,161.9403]
[1673638184588,37.0,16.829,16.812,117.3203]
[1673638185110,44.57,16.828,16.812,117.3203]
[1673638185321,64.57,16.828,16.812,117.3203]
[1673638186361,44.57,16.828,16.812,117.3203]
[1673638186572,44.57,16.828,16.813,17.0]
[1673638187087,44.57,16.828,16.813,37.0]
[1673638187608,44.57,16.828,16.813,17.0]
[1673638188564,44.57,16.828,16.813,37.0]
[1673638188775,44.57,16.828,16.813,17.0]
[1673638189105,44.57,16.828,16.813,37.0]
[1673638189952,44.57,16.828,16.813,17.0]
[1673638191206,44.57,16.828,16.814,20.0]
[1673638191421,64.57,16.829,16.815,17.0]
[1673638191618,20.0,16.829,16.815,17.0]
[1673638193941,20.0,16.829,16.814,17.0]
[1673638194865,20.0,16.829,16.814,37.0]
[1673638196031,20.0,16.829,16.814,17.0]
[1673638197624,20.0,16.829,16.814,37.0]
[1673638199204,20.0,16.829,16.814,17.0]
[1673638199932,20.0,16.829,16.815,20.0]
[1673638200139,20.0,16.829,16.816,17.0]
[1673638201295,110.4401,16.831,16.816,17.0]
[1673638201496,110.4401,16.831,16.82,11.97]
[1673638201707,110.4401,16.831,16.821,17.0]
[1673638205917,110.4401,16.831,16.82,11.97]
[1673638206632,44.57,16.83,16.82,11.97]
[1673638208649,44.57,16.83,16.815,44.61]
[1673638208861,20.0,16.829,16.812,117.3203]
[1673638209074,20.0,16.828,16.812,117.3203]
[1673638209288,64.57,16.828,16.812,117.3203]
[1673638209901,64.57,16.828,16.813,17.0]
[1673638210440,44.57,16.828,16.813,17.0]
[1673638213885,44.57,16.828,16.813,37.0]
[1673638214651,44.57,16.828,16.813,17.0]
[1673638214853,20.0,16.827,16.813,61.61]
[1673638215049,20.0,16.827,16.813,17.0]
[1673638216637,20.0,16.827,16.812,117.3203]
[1673638217036,44.58,16.826,16.812,117.3203]
[1673638218026,44.58,16.826,16.813,17.0]
[1673638218723,44.58,16.827,16.813,17.0]
[1673638219163,17.0,16.826,16.81,12.11]
[1673638219372,20.0,16.825,16.81,12.11]
[1673638219693,183.1348,16.825,16.81,12.11]
[1673638219875,44.58,16.825,16.81,12.11]
[1673638220086,198.3,16.838,16.81,12.11]
[1673638220087,134.5598,16.839,16.811,5.87536]
[1673638220302,118.4746,16.836,16.82,60.22]
[1673638220733,118.4746,16.836,16.821,262.96081151]
[1673638221154,118.4746,16.836,16.822,235.37081151]
[1673638221685,118.4746,16.836,16.823,90.03904872]
[1673638221907,118.4746,16.836,16.824,17.0]
[1673638222100,118.4746,16.836,16.824,107.03904872]
[1673638222521,118.4746,16.836,16.825,29.9691928]
[1673638222731,118.4746,16.836,16.826,17.0]
[1673638223679,115.79104843,16.836,16.826,107.03904872]
[1673638223890,115.79104843,16.836,16.826,77.06985592]
[1673638225167,115.79104843,16.836,16.824,29.9691928]
[1673638225361,115.79104843,16.836,16.825,17.0]
[1673638225783,20.0,16.835,16.825,17.0]
[1673638226748,64.55,16.835,16.825,17.0]
[1673638229880,44.55,16.835,16.825,17.0]
[1673638230090,115.79104843,16.836,16.825,17.0]
[1673638230732,115.79104843,16.836,16.825,46.9691928]
[1673638230944,115.79104843,16.836,16.825,107.03904872]
[1673638234928,114.5598,16.839,16.83,12.0]
[1673638235136,114.5598,16.839,16.831,17.0]
[1673638235344,111.6133,16.842,16.831,17.0]
[1673638235560,111.6133,16.842,16.831,46.9691928]
[1673638235766,111.6133,16.842,16.831,107.03384872]
[1673638236191,5.8507742,16.844,16.831,192.82040873]
[1673638236404,5.8507742,16.844,16.832,20.0]
[1673638236620,5.8507742,16.844,16.833,17.0]
[1673638236856,5.8507742,16.844,16.833,192.82040873]
[1673638237062,5.8507742,16.844,16.834,175.82040873]
[1673638237376,5.8507742,16.844,16.835,162.85121593]
[1673638237573,5.8507742,16.844,16.836,20.0]
[1673638237778,5.8507742,16.844,16.837,17.0]
[1673638241245,5.8507742,16.844,16.838,20.0]
[1673638241875,5.8507742,16.844,16.838,110.03384872]
[1673638242300,5.8507742,16.844,16.838,238.36561151]
[1673638242506,5.8507742,16.844,16.839,37.0]
[1673638242925,5.8507742,16.844,16.84,29.9691928]
[1673638243159,5.8507742,16.844,16.841,17.0]
[1673638243358,157.3601,16.854,16.841,102.78656001]
[1673638243563,157.3601,16.854,16.841,132.75575281]
[1673638243770,112.8601,16.854,16.841,132.75575281]
[1673638243975,112.8601,16.854,16.842,20.0]
[1673638244206,112.8601,16.854,16.843,17.0]
[1673638244814,44.5,16.856,16.843,17.0]
[1673638245019,44.5,16.856,16.843,132.75575281]
[1673638245989,44.5,16.856,16.843,115.75575281]
[1673638246189,20.0,16.855,16.843,85.78656001]
[1673638246615,44.5,16.854,16.843,85.78656001]
[1673638247671,44.5,16.855,16.843,85.78656001]
[1673638247996,44.5,16.855,16.841,60.06465592]
[1673638248216,44.5,16.856,16.841,60.06465592]
[1673638248429,44.5,16.854,16.842,29.9691928]
[1673638248616,44.5,16.855,16.842,29.9691928]
[1673638248830,44.5,16.856,16.843,17.0]
[1673638249586,64.5,16.856,16.843,17.0]
[1673638250932,20.0,16.855,16.843,17.0]
[1673638251141,20.0,16.855,16.842,17.0]
[1673638251357,44.5,16.854,16.841,17.0]
[1673638251672,20.0,16.853,16.841,17.0]
[1673638251903,44.5,16.854,16.841,17.0]
[1673638252220,44.5,16.854,16.841,46.9691928]
[1673638258520,20.0,16.853,16.841,46.9691928]
[1673638259980,44.5,16.854,16.841,46.9691928]
[1673638262278,44.5,16.855,16.841,46.9691928]
[1673638263356,64.5,16.856,16.841,46.9691928]
[1673638264497,44.5,16.856,16.841,46.9691928]
[1673638265446,42.89227536,16.856,16.841,46.9691928]
[1673638265977,157.7884,16.857,16.841,46.9691928]
[1673638266188,113.2884,16.857,16.842,44.54]
[1673638266506,113.2884,16.857,16.843,66.9691928]
[1673638267033,113.2884,16.857,16.845,20.0]
[1673638267349,113.2884,16.857,16.846,17.0]
[1673638267876,113.2884,16.857,16.846,46.9691928]
[1673638268070,113.2884,16.857,16.846,29.9691928]
[1673638268282,113.2884,16.857,16.843,20.0]
[1673638268696,44.5,16.856,16.843,49.9691928]
[1673638269349,44.5,16.856,16.844,17.0]
[1673638271240,113.2884,16.857,16.846,20.0]
[1673638271431,113.2884,16.857,16.847,17.0]
[1673638272496,44.5,16.856,16.847,17.0]
[1673638272817,113.2884,16.857,16.847,17.0]
[1673638273244,44.5,16.856,16.847,17.0]
[1673638273876,44.5,16.856,16.843,20.0]
[1673638274060,44.5,16.856,16.84,20.0]
[1673638274061,17.0,16.855,16.84,20.0]
[1673638274271,17.0,16.855,16.83,53.396]
[1673638274272,20.0,16.854,16.83,60.25]
[1673638274485,37.0,16.853,16.835,5.86698]
[1673638274713,20.0,16.852,16.835,5.86698]
[1673638274915,134.4326,16.851,16.835,5.86698]
[1673638275131,40.0,16.85,16.835,5.86698]
[1673638275445,84.52,16.85,16.835,5.86698]
[1673638275746,84.52,16.85,16.836,17.0]
[1673638276490,96.56,16.85,16.836,17.0]
[1673638277957,76.56,16.85,16.836,17.0]
[1673638278169,64.52,16.85,16.836,17.0]
[1673638278373,20.0,16.85,16.836,17.0]
[1673638278805,64.52,16.85,16.836,17.0]
[1673638279441,64.52,16.85,16.832,44.56]
[1673638279655,84.52,16.85,16.831,64.57]
[1673638280069,96.46,16.85,16.831,64.57]
[1673638280702,96.46,16.85,16.832,17.0]
[1673638281337,96.46,16.85,16.831,44.57]
[1673638281550,17.0,16.849,16.831,44.57]
[1673638281741,20.0,16.848,16.831,44.57]
[1673638281946,177.4105,16.848,16.831,44.57]
[1673638282916,177.4105,16.848,16.832,17.0]
[1673638285627,17.0,16.847,16.83,12.09]
[1673638285836,37.0,16.847,16.831,17.0]
[1673638286053,44.53,16.846,16.831,17.0]
[1673638287852,20.0,16.845,16.831,17.0]
[1673638288265,44.53,16.844,16.831,17.0]
[1673638289941,112.8746,16.845,16.831,17.0]
[1673638290893,112.8746,16.845,16.832,20.0]
[1673638291109,112.8746,16.845,16.833,17.0]
[1673638292776,112.8746,16.845,16.832,17.0]
[1673638293527,112.8746,16.845,16.831,44.57]
[1673638293716,112.8746,16.845,16.83,32.09]
[1673638294980,112.8746,16.845,16.831,17.0]
[1673638295191,44.53,16.844,16.831,17.0]
[1673638295402,44.53,16.844,16.83,12.09]
[1673638296340,37.0,16.843,16.83,12.09]
[1673638296575,37.0,16.843,16.826,61.53340507]
[1673638296908,44.54,16.842,16.827,20.0]
[1673638297619,44.54,16.842,16.828,17.0]
[1673638297821,44.54,16.842,16.829,20.0]
[1673638298024,44.54,16.842,16.83,17.0]
[1673638302250,20.0,16.841,16.826,41.53340507]
[1673638302463,12.04,16.84,16.82,40.18354831]
[1673638302773,20.0,16.839,16.82,12.04]
[1673638302959,40.0,16.839,16.82,12.04]
[1673638303173,44.55,16.838,16.822,29.9691928]